[Event "7th Sharjah Masters 2024"]
[Site "Sharjah"]
[Date "2024.05.19"]
[Round "6.39"]
[White "Yilmaz, Mustafa"]
[Black "Avila Pavas, Santiago"]
[Result "1-0"]
[ECO "D37"]
[WhiteElo "2641"]
[BlackElo "2516"]
[Annotator "TA"]
[PlyCount "105"]
[EventDate "2024.05.13"]
[EventType "swiss"]
[EventCountry "UAE"]
[SourceTitle "playchess.com"]
[Source "ChessBase"]
[SourceQuality "1"]
[TimeControl "5400+30"]

{[%evp 36,105,48,41,35,32,67,39,76,75,68,74,80,81,84,84,140,77,211,218,236,220,230,181,169,162,221,216,222,224,204,190,227,224,253,209,331,211,200,173,236,229,242,234,275,248,248,246,315,244,340,362,364,375,376,383,369,380,425,390,494,386,545,547,551,522,619,402,695,495,472,458]} 1. d4 {[%emt 0:00:02]} d5 {[%emt 0:00:19]} 2. c4 {[%emt 0:00:25]} e6 {[%emt 0:00:19]} 3. Nf3 {[%emt 0:01:10]} Nf6 {[%emt 0:00:24]} 4. Nc3 {[%emt 0:00:04]} a6 {[%emt 0:00:29]} 5. cxd5 {[%emt 0:00:09]} exd5 {[%emt 0:00:06]} 6. Bg5 {[%emt 0:00:03] D37: Queen's Gambit Declined: 5 Bf4.} Be6 {[%emt 0:00:11]} 7. e3 {[%emt 0:00:05]} Nbd7 {[%emt 0:00:19]} 8. Bd3 {[%emt 0:00:06]} Bd6 {[%emt 0:00:35]} 9. O-O {[%emt 0:05:03]} c6 {[%emt 0:01:00]} 10. Bf4 {[%emt 0:03:41]} Qc7 {[%emt 0:02:24]} 11. Bxd6 {[%emt 0:01:16]} Qxd6 {[%emt 0:00:10]} 12. Qc2 {[%emt 0:04:19]} O-O {[%emt 0:02:37]} 13. h3 {[%emt 0:07:11]} h6 {[%emt 0:08:13]} 14. Rfe1 $5 {[%emt 0:02:39][%mdl 4] Exploring less charted territory.} Rfc8 {[%emt 0:10:25]} 15. Rad1 {[%emt 0:06:21]} b5 $146 {[%emt 0:12:56]} ({Predecessor:} 15... Qc7 16. Nd2 c5 17. dxc5 Nxc5 18. Qb1 b5 19. Nf3 b4 20. Ne2 Nxd3 21. Qxd3 Qc2 22. Qxc2 Rxc2 {1-0 Karavade,E (2384)-Stocko,J (2331) Zadar op-A 24th 2017 (8)}) 16. Ne2 {[%emt 0:08:46]} c5 {[%emt 0:11:10]} 17. dxc5 {[%emt 0:00:24]} Nxc5 {[%emt 0:00:08]} 18. Nf4 {[%emt 0:05:57]} Bd7 {[%emt 0:19:40]} 19. Qd2 {[%emt 0:08:39]} Nxd3 {[%emt 0:02:37]} 20. Qxd3 {[%emt 0:02:34]} Rc5 {[%emt 0:17:05]} 21. Qd2 {[%emt 0:14:38]} Qe7 {[%emt 0:02:58]} 22. Nd4 {[%emt 0:04:02]} Rac8 {[%emt 0:01:14]} 23. Qb4 {[%emt 0:03:36]} Qd8 {[%emt 0:00:31]} 24. Nd3 {[%emt 0:01:09]} Rc4 {[%emt 0:00:05]} 25. Qd6 {[%emt 0:00:45]} Qa5 {[%emt 0:02:15]} (25... Qc7 $142 26. Qxc7 (26. Qxa6 $2 Ra4 $19) 26... R4xc7) 26. a3 {[%emt 0:02:12]} ({Better is} 26. Ne5 R4c7 27. a3) 26... Be6 {[%emt 0:02:44]} (26... Qc7 $16 27. Qxc7 (27. Qxa6 $2 Ra4 $19) 27... R4xc7) 27. Ne5 $18 {[%emt 0:04:49]} Ne4 {[%emt 0:00:12]} 28. Nxc4 {[%emt 0:01:10]} bxc4 {[%emt 0:00:04]} 29. Qe5 {[%emt 0:02:51]} Re8 {[%emt 0:00:05]} 30. Ne2 {[%emt 0:03:28]} Nf6 {[%emt 0:02:43]} (30... Qb5 $142 31. f3 Nf6) 31. Qc3 {[%emt 0:00:34]} Qb6 {[%emt 0:00:03]} 32. b4 {[%emt 0:01:29]} Bf5 {[%emt 0:01:29]} 33. Nf4 {[%emt 0:00:31]} Qc6 {[%emt 0:00:12]} 34. Qd4 {[%emt 0:01:59]} Be6 {[%emt 0:00:50]} 35. f3 {[%emt 0:00:23]} Qa4 {[%emt 0:00:40]} (35... Rc8 {was necessary.} 36. Rc1 Qd6) 36. Qc3 {[%emt 0:00:23]} Qc6 {[%emt 0:00:18]} 37. Rd2 {[%emt 0:01:33]} Bf5 {[%emt 0:00:48]} (37... Bc8 $142 38. Red1 Be6) 38. Red1 $18 {[%emt 0:00:55]} Be6 {[%emt 0:00:03]} 39. Kf2 {[%emt 0:01:00]} Qb5 {[%emt 0:00:41]} 40. Qd4 {[%emt 0:01:05]} Qa4 {[%emt 0:00:13]} 41. Ra1 {[%emt 0:00:14]} a5 {[%emt 0:00:53]} 42. Qc3 {[%emt 0:01:36]} Rb8 {[%emt 0:00:31]} 43. Rb2 {[%emt 0:00:46]} (43. bxa5 Rb3 44. Qd4 Bf5 45. Nxd5 Nxd5 $18) 43... Nd7 {[%emt 0:00:27]} 44. bxa5 {[%emt 0:00:41]} Rxb2+ {[%emt 0:00:48]} 45. Qxb2 {[%emt 0:00:02]} Qxa5 {[%emt 0:00:07]} 46. Qb4 {[%emt 0:01:07]} Qa7 {[%emt 0:00:22]} 47. Rb1 {[%emt 0:00:50]} Kh7 {[%emt 0:00:05]} 48. Rd1 {[%emt 0:00:40]} Qa8 {[%emt 0:00:41]} (48... Ne5 {keeps fighting.} 49. Qc3 (49. Nxd5 Nd3+ 50. Rxd3 cxd3 $16) 49... Qa4) 49. a4 $18 {[%emt 0:00:55]} Ne5 {[%emt 0:00:18]} 50. Qb1+ {[%emt 0:00:17]} Kh8 {[%emt 0:00:20]} 51. Qb5 {[%emt 0:00:15]} Qc8 {[%emt 0:01:19]} (51... Bd7 $142 52. Qb4 (52. Qxd5 Qxa4 53. Rd2 Qa1 $18) 52... Bf5) 52. Rb1 {[%emt 0:00:45]} Kh7 {[%emt 0:00:21]} 53. Qb8 {[%emt 0:00:37]} ({Weaker is} 53. Nxd5 Qd8 $18) 1-0

[Event "7th Sharjah Masters 2024"]
[Site "Sharjah"]
[Date "2024.05.19"]
[Round "6.40"]
[White "Cardoso Cardoso, Jose Gabriel"]
[Black "Kacharava, Nikolozi"]
[Result "1/2-1/2"]
[ECO "C78"]
[WhiteElo "2497"]
[BlackElo "2527"]
[Annotator "TA"]
[PlyCount "218"]
[EventDate "2024.05.13"]
[EventType "swiss"]
[EventCountry "UAE"]
[SourceTitle "playchess.com"]
[Source "ChessBase"]
[SourceQuality "1"]
[TimeControl "5400+30"]

{[%evp 22,218,8,4,39,45,43,10,12,15,24,15,44,32,47,16,22,25,18,8,69,44,57,0,38,33,112,110,133,140,126,110,116,101,123,80,68,83,77,77,70,76,66,77,76,92,200,148,253,257,240,248,370,370,370,370,365,339,357,348,345,293,373,358,604,188,167,180,184,121,177,0,0,0,0,0,0,0,0,15,15,22,66,73,77,58,74,56,72,78,109,0,0,0,0,0,0,0,0,0,0,0,0,0,107,107,107,100,704,579,665,557,1429,517,5939,3315,12833,12818,12813,12808,12560,11170,6766,6547,6215,6079,4133,1244,1127,589,575,569,516,396,388,0,0,0,0,0,0,0,0,0,0,0,0,0,0,0,0,0,0,0,0,0,0,0,0,0,0,0,0,0,0,0,0,0,0,0,0,0,0,0,0,0,0,0,0,0,0,0,0,0,0,0,0,0,0,0,0,0,0,0,0,0,0,0,0]} 1. e4 {[%emt 0:00:04]} e5 {[%emt 0:00:18]} 2. Nf3 {[%emt 0:00:15]} Nc6 {[%emt 0:00:13]} 3. Bb5 {[%emt 0:00:19][%cal Bf1b5,Bb5a4,Ba4b3][%mdl 32]} a6 {[%emt 0:00:18]} 4. Ba4 {[%emt 0:00:09]} Nf6 {[%emt 0:00:36]} 5. O-O {[%emt 0:00:25]} b5 {[%emt 0:00:33]} 6. Bb3 {[%emt 0:00:15]} Bc5 {[%emt 0:00:29]} 7. a4 {[%emt 0:00:57]} Bb7 {[%emt 0:00:44]} 8. c3 {[%emt 0:01:38]} d6 {[%emt 0:00:34]} 9. d4 {[%emt 0:00:18]} Bb6 {[%emt 0:00:37]} 10. Re1 {[%emt 0:01:18]} O-O {[%emt 0:01:04]} 11. Bg5 {[%emt 0:01:00]} h6 {[%emt 0:00:38]} 12. Bh4 {[%emt 0:00:17]} b4 {[%emt 0:00:48]} 13. d5 {[%emt 0:10:51]} Na5 {[%emt 0:00:34]} 14. Bxf6 {[%emt 0:00:09]} Qxf6 {[%emt 0:01:18]} 15. cxb4 {[%emt 0:01:08]} Nxb3 {[%emt 0:00:09]} 16. Qxb3 {[%emt 0:00:05]} g5 {[%emt 0:05:19]} 17. Re2 {[%emt 0:04:44]} Qg6 {[%emt 0:10:05]} 18. Nfd2 {[%emt 0:07:16][%cal Bf3d2,Bd2c4,Bc4a5,Ba5c6][%mdl 32]} f5 {[%emt 0:07:52]} (18... Qh5 {is more complex.} 19. Qd3 f5 20. exf5 Bc8) 19. Nc4 {[%emt 0:03:50]} Bd4 {[%emt 0:06:38]} 20. Na5 {[%emt 0:16:56]} fxe4 {[%emt 0:17:27]} 21. Nc3 $1 $14 {[%emt 0:00:15]} (21. Nxb7 $2 Rxf2 22. Rxf2 Rf8 $19) 21... Qh5 {[%emt 0:25:31]} 22. Rae1 {[%emt 0:11:17]} (22. Nxb7 Bxc3 23. Rxe4 Bd4 $11) (22. Qc4 $14 Rf4 23. Nxe4 (23. Nxb7 e3 $11)) 22... Bc8 {[%emt 0:06:41] This pair of bishops is nice.} (22... Qf7 $5 23. Rf1 (23. Nxb7 Bxf2+ 24. Kh1 Bxe1) 23... Bxc3 24. bxc3 (24. Nxb7 Bd4 $15) 24... Bxd5 $11 (24... Qxd5 $2 25. c4 $18)) 23. Nxe4 {[%emt 0:00:27]} Bd7 {[%emt 0:00:55]} (23... Bg4 $14 24. Rd2 Bd7) 24. Qc2 $16 {[%emt 0:05:36]} Bf5 {[%emt 0:07:09]} 25. Nc6 {[%emt 0:03:26]} (25. Qxc7 $2 Rac8 $19 (25... Bxe4 $2 26. Rxe4 Bxf2+ 27. Kh1 $19) (25... Bxe4 $2 26. Rxe4 Bxf2+ 27. Kh1 $19)) 25... Bxe4 {[%emt 0:00:28]} 26. Qxe4 {[%emt 0:01:38]} Rf4 {[%emt 0:00:19]} 27. Qd3 {[%emt 0:01:40]} Qf7 {[%emt 0:00:32][%cal Rd4f2]} 28. g3 {[%emt 0:05:48]} Bxf2+ {[%emt 0:03:11]} 29. Kg2 {[%emt 0:00:49]} Rf6 {[%emt 0:00:36]} 30. Rf1 $36 {[%emt 0:01:07][%mdl 2048] White is really pushing.} Rf8 {[%emt 0:00:18] [#]} 31. Nd8 $1 {[%emt 0:03:48] Active counter play!} Rxd8 {[%emt 0:02:14]} 32. Rexf2 {[%emt 0:00:04]} (32. Rfxf2 Rf8 33. Qd2 (33. Rxf6 Qxf6 34. Rc2 e4 $17) 33... Rf3 $17) 32... Rxf2+ {[%emt 0:00:22]} 33. Rxf2 {[%emt 0:00:02][%mdl 4096] Endgame. KQR-KQR} Qg7 {[%emt 0:01:42]} (33... Qh7 $16 34. Qxh7+ (34. Qxa6 Qe4+ 35. Kg1 Qe1+ 36. Qf1 Qxb4 $14) 34... Kxh7) 34. Qxa6 $18 {[%emt 0:00:19]} Rf8 {[%emt 0:00:37]} (34... e4 $16) 35. Rxf8+ {[%emt 0:01:33]} Qxf8 {[%emt 0:00:01] KQ-KQ} 36. Qd3 {[%emt 0:00:17] Wards off e4} Kg7 {[%emt 0:00:37] Prevents Qg6+} (36... Qe8 $142 37. Qf5 Kg7) 37. a5 {[%emt 0:00:34]} Qb8 {[%emt 0:00:32]} 38. b5 {[%emt 0:02:13]} Qa7 {[%emt 0:00:54]} 39. b4 {[%emt 0:00:38]} g4 {[%emt 0:00:28]} 40. Kf1 {[%emt 0:02:22]} h5 {[%emt 0:00:18]} 41. Qc3 {[%emt 0:01:54]} Qb8 {[%emt 0:00:46]} 42. Qc6 {[%emt 0:01:55]} Kh8 $2 {[%emt 0:00:28]} (42... Qa7 43. Ke2 Kh7) 43. b6 $2 {[%emt 0:04:05]} (43. Ke1 {Black must now prevent a6.} Qf8 44. b6 (44. Qxc7 Qf3 $18) 44... cxb6 45. Qxb6 (45. axb6 Qf5 $16)) 43... Qf8+ {[%emt 0:00:12]} 44. Ke1 $1 {[%emt 0:00:06]} cxb6 {[%emt 0:00:44]} 45. axb6 {[%emt 0:01:18]} (45. Qxb6 $18 Qf3 46. Qd8+ (46. Qxd6 Qe3+ 47. Kd1 Qd3+ 48. Kc1 Qc3+ 49. Kd1 Qd3+ 50. Kc1 Qc3+ 51. Kd1 Qd3+ $11) 46... Kh7 47. Qc7+ (47. Qxd6 Qe3+ 48. Kd1 Qd3+ 49. Kc1 Qc3+ 50. Kd1 Qd3+ 51. Ke1 Qe3+ 52. Kd1 Qd3+ $11) 47... Kh8 48. Kd2 (48. Qxd6 Qe3+ 49. Kd1 Qd3+ 50. Kc1 Qc3+ 51. Kb1 Qb3+ 52. Ka1 Qa3+ 53. Kb1 Qb3+ 54. Ka1 Qa3+ 55. Kb1 Qb3+ $11)) 45... Qf5 $16 {[%emt 0:00:12]} 46. Kd2 $2 {[%emt 0:04:41]} (46. Qxd6 Qe4+ 47. Kd2 Qd4+ 48. Kc2 Qe4+ 49. Kb3 Qd3+ 50. Ka4 (50. Kb2 Qd4+ 51. Kb3 Qd3+ 52. Ka2 Qd2+ 53. Ka3 Qd3+ 54. Kb2 Qd2+ 55. Kb1 Qd3+ 56. Kb2 $11) 50... Qa6+ 51. Kb3 Qd3+ 52. Kb2 Qd4+ 53. Kc2 Qe4+ 54. Kd2 Qd4+ 55. Kc2 $11) (46. Qe8+ $18 Kh7 47. Qe7+ Kh8 48. Qd8+ (48. Qxd6 Qe4+ 49. Kd2 Qd4+ 50. Kc2 Qc4+ 51. Kb2 Qd4+ 52. Kc2 Qe4+ 53. Kb2 Qd4+ 54. Kb3 Qd3+ 55. Kb2 Qd2+ 56. Kb3 Qd3+ 57. Ka4 Qa6+ 58. Kb3 Qd3+ $11) 48... Kg7 49. Qc7+ (49. Qxd6 Qe4+ 50. Kd2 Qd4+ 51. Kc2 Qc4+ 52. Kb2 Qd4+ 53. Kb3 Qd3+ 54. Ka2 Qd2+ 55. Kb1 Qd3+ 56. Ka2 Qc2+ 57. Ka3 Qd3+ 58. Kb2 Qd4+ 59. Kc2 Qc4+ 60. Kd2 Qd4+ 61. Kc2 $11) 49... Kh8 50. Qc4 (50. Qxd6 Qe4+ 51. Kd2 Qd4+ 52. Kc2 Qc4+ 53. Kb2 Qd4+ 54. Kc2 Qe4+ 55. Kc3 Qd4+ 56. Kc2 $11) 50... Qb1+ 51. Ke2 Qb2+ 52. Kd3 Qb1+ 53. Kc3 Qc1+ 54. Kb3 Qd1+ (54... Qxc4+ 55. Kxc4 Kg7 56. b7 e4 57. b8=Q e3 58. Qxd6 e2 59. Qe7+ Kh6 60. d6) 55. Kb2 Qd2+ 56. Kb3 Qe3+ 57. Qc3 Qxb6 58. Qc8+ Kh7 59. Qc6 Qe3+ 60. Ka4 Qa7+ 61. Kb3 Qe3+ 62. Kc4 Qe2+ 63. Kb3 Qxh2 64. Qc7+ (64. Qxd6 Qxg3+ 65. Ka4 Qf3 $11) 64... Kg8 65. Qc8+ (65. Qxd6 Qxg3+ 66. Ka4 Qf4 $11) 65... Kg7 66. Qd7+ Kg8 67. Qe6+ (67. Qxd6 Qxg3+ 68. Ka4 Qd3 $11) 67... Kg7 68. Qe7+ (68. Qxd6 Qxg3+ 69. Ka4 Qf3 $11) 68... Kg8 69. Qe6+ (69. Qxd6 Qxg3+ 70. Ka4 Qd3 $11) 69... Kg7 70. Qe7+ (70. Qxd6 Qxg3+ 71. Ka4 Qd3 $11) 70... Kg8 71. Qg5+ (71. Qxd6 Qxg3+ 72. Ka4 Qf4 $11) 71... Kh7 72. Qe7+ Kg8) 46... Qf2+ $11 {[%emt 0:00:05]} 47. Kc3 {[%emt 0:00:29]} Qe3+ {[%emt 0:00:29]} 48. Kb2 {[%emt 0:00:26][%cal Ob6b7]} Qd2+ {[%emt 0:00:24]} 49. Kb3 {[%emt 0:00:34]} (49. Ka3 Qd3+ 50. Ka4 Qa6+ 51. Kb3 Qd3+ 52. Qc3 Qxd5+ (52... Qxc3+ 53. Kxc3 Kg7 54. b7 Kg6 55. b8=Q Kf5 56. Qxd6 Ke4 57. Qe6) 53. Ka3 (53. Ka4 Qa2+ 54. Qa3 Qc4 $11) 53... Qa8+ 54. Kb2 Qd5 $16) 49... Qd1+ {[%emt 0:00:53]} 50. Qc2 {[%emt 0:00:38]} Qxd5+ {[%emt 0:00:02]} 51. Ka3 {[%emt 0:01:48]} Qd4 {[%emt 0:01:09]} 52. Qc6 {[%emt 0:00:49]} Qd3+ {[%emt 0:00:31]} 53. Kb2 {[%emt 0:00:51] White threatens b7 and mate.} Qd2+ $1 {[%emt 0:00:14]} 54. Kb3 {[%emt 0:00:18]} Qd3+ {[%emt 0:00:13]} 55. Qc3 {[%emt 0:00:15]} Qd5+ {[%emt 0:01:00]} 56. Kb2 {[%emt 0:00:06]} (56. Ka4 $6 Qa2+ 57. Qa3 (57. Kb5 Qd5+ 58. Ka4 Qa2+ 59. Qa3 Qc4 $11) 57... Qc4 $11 (57... Qxa3+ 58. Kxa3 Kh7 59. b7 e4 60. b8=Q h4 61. Qxd6 hxg3 62. Qxg3)) (56. Ka3 $1 $16 Qa8+ 57. Kb2) 56... Kg7 $1 {[%emt 0:00:54]} 57. Ka3 {[%emt 0:01:15]} Kf6 {[%emt 0:00:22]} 58. Qc8 {[%emt 0:00:37]} Qb5 {[%emt 0:00:35]} 59. Qd8+ {[%emt 0:01:08]} (59. b7 $5 Qd3+ $8 60. Ka4 Qa6+ 61. Kb3 Qd3+ 62. Kb2 Qd2+ 63. Kb3 Qd3+ 64. Kb2 Qd2+ 65. Kb3 Qd3+ $11) 59... Ke6 {[%emt 0:00:15]} 60. Qc8+ {[%emt 0:00:19]} Kf6 $1 {[%emt 0:00:16]} 61. Qb7 {[%emt 0:00:20]} (61. b7 $5 Qd3+ $8 62. Ka4 Qa6+ 63. Kb3 Qd3+ 64. Kb2 Qd2+ 65. Qc2 Qxb4+ 66. Qb3 Qd2+ 67. Ka3 Qa5+ 68. Kb2 Qd2+ 69. Ka1 Qe1+ 70. Ka2 Qf2+ 71. Ka3 Qa7+ 72. Kb2 Qf2+ 73. Kb1 Qg1+ (73... Qxh2 $2 74. b8=Q $18) 74. Kb2 Qf2+ 75. Kc1 Qg1+ 76. Qd1 Qc5+ 77. Qc2 Qg1+ 78. Kb2 Qb6+ 79. Qb3 Qf2+ $11) 61... Qd3+ {[%emt 0:00:40]} 62. Ka4 {[%emt 0:00:07]} Qc2+ {[%emt 0:00:18] [#]} (62... Qc4 $1 $11) 63. Kb5 $1 $16 {[%emt 0:00:25]} Qd3+ {[%emt 0:00:23]} 64. Kc6 {[%emt 0:00:11]} Qc4+ $2 {[%emt 0:00:21][%mdl 8192]} (64... e4 $16) 65. Kd7 $1 $18 {[%emt 0:01:39] Strongly threatening Qc6.} Qf7+ {[%emt 0:00:45]} 66. Kc8 {[%emt 0:00:12]} (66. Kxd6 Qxb7 67. Kc5 Ke7 68. Kc4 Qxb6 69. b5 e4 70. Kc3 Qc5+ (70... Qxb5 71. Kd4 Qd3+ 72. Ke5 e3 73. h3 e2 74. Kf4 Qd2+ 75. Kf5 e1=Q 76. Kg6 Qe6+ 77. Kxh5 Qdh6#) 71. Kd2 Qd4+ (71... Qxb5 72. Kc3 e3 73. h3 e2 74. Kd2 Qe5 75. Ke1 Qe4 76. h4 Kf7 77. Kf2 e1=Q#) 72. Kc2 e3 73. Kb3 e2 74. Ka3 e1=Q (74... e1=B 75. Kb3 Qc3+ 76. Ka2 Qb4 77. h3 Bc3 78. hxg4 Qb2#) 75. Ka2 Qef2+ 76. Kb3 Qfb2#) 66... Qe8+ {[%emt 0:00:38]} 67. Kc7 {[%emt 0:00:01][%cal Ob7c6]} Qe7+ {[%emt 0:00:48]} (67... e4 $142 68. Qc8 (68. Kxd6 Qe6+ 69. Kc7 e3 $11) 68... Qe7+ (68... Qxc8+ $2 69. Kxc8 e3 70. b7 $18) 69. Qd7 e3 70. Qxe7+ (70. b7 e2 $18) 70... Kxe7) 68. Kc6 {[%emt 0:00:44]} Qxb7+ {[%emt 0:00:22]} 69. Kxb7 {[%emt 0:00:01] Threatening mate with Kc6. KP-KP} e4 {[%emt 0:00:00]} 70. Kc6 {[%emt 0:00:39][%cal Ob6b7]} e3 {[%emt 0:00:03]} 71. b7 $1 {[%emt 0:00:06]} (71. Kxd6 $2 e2 72. Kc5 e1=Q $19 (72... e1=B $2 73. b7 $18)) 71... e2 {[%emt 0:00:01]} 72. b8=Q {[%emt 0:00:07]} (72. b8=B $2 {loses.} e1=Q (72... e1=B $2 {too greedy.} 73. Bxd6 h4 74. b5 $18) 73. Bxd6 Ke6 $19) 72... e1=Q {[%emt 0:00:01]} 73. Qxd6+ {[%emt 0:00:24] KQ-KQ} Kg7 {[%emt 0:00:19]} 74. Qd4+ {[%emt 0:00:37]} (74. b5 $142 Qe4+ 75. Kc7 Qc2+ 76. Kd8) 74... Kh7 {[%emt 0:00:41]} 75. Kd5 {[%emt 0:00:30] White wants to mate with Qe4+.} Qf1 {[%emt 0:00:50]} 76. Qe4+ {[%emt 0:00:37]} Kg7 {[%emt 0:00:27]} 77. Kc5 {[%emt 0:00:16]} ({Stronger than} 77. Qe5+ Kh6 $11) 77... Qf8+ {[%emt 0:00:32] [#]} 78. Kb5 $2 {[%emt 0:00:23]} (78. Kc4 $1 $18) 78... Qf2 $1 $11 {[%emt 0:01:59] The position is equal.} 79. Qe7+ {[%emt 0:02:04]} Kh6 {[%emt 0:00:34]} 80. Qd6+ {[%emt 0:00:22]} Kh7 {[%emt 0:00:24]} 81. Qc7+ {[%emt 0:00:32]} Kg8 {[%emt 0:00:00]} 82. Qb8+ {[%emt 0:00:51]} Kh7 {[%emt 0:00:16]} 83. Qb7+ {[%emt 0:00:12]} Kh8 {[%emt 0:00:02]} 84. Qh1 {[%emt 0:00:36]} Qe2+ {[%emt 0:00:44]} 85. Ka5 {[%emt 0:00:15]} Qa2+ {[%emt 0:00:52]} 86. Kb6 {[%emt 0:00:06]} Qf2+ {[%emt 0:00:22]} 87. Ka6 {[%emt 0:00:42]} Qa2+ {[%emt 0:00:16]} 88. Kb6 {[%emt 0:00:34]} Qf2+ {[%emt 0:00:06]} 89. Kb5 {[%emt 0:00:50]} Qe2+ {[%emt 0:00:09]} 90. Kc5 {[%emt 0:00:21] And now Qa8+ would win.} Qf2+ {[%emt 0:00:45]} 91. Kc4 {[%emt 0:00:39]} Qc2+ {[%emt 0:00:42]} 92. Kd5 {[%emt 0:00:27] Hoping for Qa1+.} Qd2+ {[%emt 0:01:18]} 93. Ke6 {[%emt 0:00:22] aiming for Qd5.} Qe3+ {[%emt 0:00:41]} 94. Kd6 {[%emt 0:00:33] Threatens to win with Qd5.} Qb6+ {[%emt 0:00:33]} 95. Kd7 {[%emt 0:01:00] Qd5 is the strong threat.} Qxb4 {[%emt 0:00:24]} 96. Qd5 {[%emt 0:00:14]} h4 {[%emt 0:00:52]} 97. Qh5+ {[%emt 0:00:58]} Kg7 {[%emt 0:00:08]} 98. Qg5+ {[%emt 0:00:15]} Kf7 {[%emt 0:00:27]} 99. Qf5+ {[%emt 0:00:36]} Kg7 {[%emt 0:00:14]} 100. Qe5+ {[%emt 0:00:27]} Kf7 {[%emt 0:00:51]} 101. Qf5+ {[%emt 0:00:31]} Kg7 {[%emt 0:00:05]} 102. Qg5+ {[%emt 0:00:09]} Kf7 {[%emt 0:00:05]} 103. Qh5+ {[%emt 0:00:03]} Kg7 {[%emt 0:00:06]} 104. Qxh4 {[%emt 0:00:05] Qe7+ would kill now.} Qd4+ {[%emt 0:00:40]} 105. Ke6 {[%emt 0:01:22]} Qe4+ {[%emt 0:00:11]} 106. Kd6 {[%emt 0:00:14]} Qd4+ {[%emt 0:00:21]} 107. Ke7 {[%emt 0:00:14] Intending Qg5+ and mate.} Qe5+ {[%emt 0:00:25]} 108. Kd8 {[%emt 0:00:23] Qe7+ would now be deadly.} Qd4+ {[%emt 0:00:30]} 109. Ke8 {[%emt 0:00:27]} Qa4+ {[%emt 0:00:14] Black defended with fortune.   Weighted Error Value: White=0.20 (precise) /Black=0.21 (precise) .  Loses game:     	---       	Black=1      Missed win:     	White=2     	---        Mistake:       	White=4     	Black=8      Inaccurate:     	White=3     	Black=4      OK:         	White=27    	Black=31     Best:        	White=5     	Black=13     Strong:       	White=3     	Black=4      Brilliant:      	White=1     	---} 1/2-1/2

[Event "7th Sharjah Masters 2024"]
[Site "Sharjah"]
[Date "2024.05.19"]
[Round "6.41"]
[White "Raja Rithvik R"]
[Black "Seemann, Jakub"]
[Result "1/2-1/2"]
[ECO "E32"]
[WhiteElo "2524"]
[BlackElo "2475"]
[Annotator "TA"]
[PlyCount "46"]
[EventDate "2024.05.13"]
[EventType "swiss"]
[EventCountry "UAE"]
[SourceTitle "playchess.com"]
[Source "ChessBase"]
[SourceQuality "1"]
[TimeControl "5400+30"]

{[%evp 13,46,0,0,0,0,0,6,0,11,0,6,0,0,4,2,13,14,5,10,12,20,15,0,7,36,0,3,0,0,0,0,0,0,0,0]} 1. d4 {[%emt 0:03:04]} Nf6 {[%emt 0:00:07]} 2. c4 {[%emt 0:00:05]} e6 {[%emt 0:00:03]} 3. Nc3 {[%emt 0:00:03]} Bb4 {[%emt 0:00:04]} 4. Qc2 {[%emt 0:00:03]} O-O {[%emt 0:00:15]} 5. e4 {[%emt 0:00:07][%cal Be2e4,Be4e5][%mdl 32]} d5 {[%emt 0:00:06]} 6. e5 {[%emt 0:00:02]} Ne4 {[%emt 0:00:04]} 7. Bd3 {[%emt 0:00:05]} c5 {[%emt 0:00:04]} 8. Nf3 {[%emt 0:00:04] And now 0-0 would win.} cxd4 {[%emt 0:00:07]} 9. Nxd4 {[%emt 0:00:04]} Nd7 {[%emt 0:00:05]} 10. Bf4 {[%emt 0:00:04]} Ndc5 {[%emt 0:00:05]} 11. O-O {[%emt 0:00:13][%cal Rd3e4]} Bxc3 {[%emt 0:00:05]} 12. bxc3 {[%emt 0:00:04]} Nxd3 {[%emt 0:00:05]} 13. Qxd3 {[%emt 0:00:03]} b6 {[%emt 0:00:05]} 14. cxd5 {[%emt 0:00:17]} Qxd5 {[%emt 0:00:12]} 15. Rfd1 {[%emt 0:02:15]} Bb7 {[%emt 0:00:19][%cal Oe4c3,Bc8b7,Bb7c6,Bc6d7][%mdl 32] [#] Hoping for ...Nxc3!} 16. c4 {[%emt 0:00:09]} Qa5 {[%emt 0:00:13]} 17. Nb5 {[%emt 0:00:34]} Bc6 {[%emt 0:11:03]} 18. a4 {[%emt 0:13:37]} Qb4 {[%emt 0:02:29]} 19. Qd4 {[%emt 0:32:34] White wants to play f3.} Rfc8 {[%emt 0:15:06] The position is equal.} 20. Nd6 {[%emt 0:11:39]} Nxd6 {[%emt 0:00:37]} 21. exd6 {[%emt 0:00:03][%cal Of4h6] [#] Strongly threatening Bh6!} Bd7 $1 {[%emt 0:14:02]} 22. Bh6 {[%emt 0:07:33]} gxh6 {[%emt 0:00:22]} 23. Qg4+ {[%emt 0:29:18]} Kh8 {[%emt 0:00:36] Not much happened in this game.   Weighted Error Value: White=0.04 (flawless) /Black=0.03 (flawless) .  Inaccurate:     	White=1     	Black=1      OK:         	White=7     	Black=9      Best:        	---       	Black=1      Strong:       	---       	Black=1} 1/2-1/2